[Event "Moscow Youth U19 2019"]
[Site "Moscow"]
[Date "2019.11.26"]
[Round "9.9"]
[White "Agashin, Alexandr"]
[Black "Sekoyan, Vachagan"]
[Result "0-1"]
[ECO "A68"]
[WhiteElo "1546"]
[BlackElo "2084"]
[Annotator "NA RC"]
[PlyCount "96"]
[EventDate "2019.11.18"]
[EventType "swiss"]
[EventCountry "RUS"]
[SourceTitle "playchess.com"]
[Source "ChessBase"]
[SourceQuality "1"]
[TimeControl "5400+30"]

1. d4 {[%emt 0:00:00]} g6 {[%emt 0:00:00]} 2. c4 {[%emt 0:00:00]} Bg7 {[%emt 0:00:00]} 3. Nc3 {[%emt 0:00:00]} c5 {[%emt 0:00:18]} 4. d5 {[%emt 0:00:35]} d6 {[%emt 0:00:29]} 5. e4 {[%emt 0:00:45]} Nf6 {[%emt 0:00:46]} 6. f4 {[%emt 0:02:43]} O-O {[%emt 0:02:17]} 7. Nf3 {[%emt 0:00:34]} e6 {[%emt 0:05:30]} 8. Bd3 {[%emt 0:06:59]} exd5 {[%emt 0:02:38]} 9. cxd5 {[%emt 0:00:37]} Re8 {[%emt 0:01:40]} 10. O-O {[%emt 0:01:13]} c4 {[%emt 0:05:50]} 11. Bc2 {[%emt 0:10:27]} b5 {[%emt 0:06:23]} 12. a3 {[%emt 0:09:13] A68: Modern Benoni: Four Pawns Attack without 9...Re8} Ng4 {[%emt 0:05:20]} (12... Qb6+ 13. Kh1 Nbd7 14. h3 Nc5 15. Re1 Nfd7 16. Be3 a5 17. Bd4 f6 18. Nd2 Ba6 19. Qf3 b4 20. axb4 Qxb4 {1-0 (42) Steinbacher,C (2080)-Kushka,A (2148) Braunfels 2019}) 13. Nxb5 {[%emt 0:22:42]} Ba6 $146 {[%emt 0:05:12]} ({Predecessor:} 13... Qb6+ 14. Nbd4 Nf6 15. Re1 Bg4 16. Kf1 Nbd7 17. h3 Bxf3 18. Nxf3 Nc5 19. e5 Nfd7 {½-½ (44) Iversen,C (1876)-Thogersen,R (2013) Odense 2013}) 14. Nbd4 {[%emt 0:05:43]} Qb6 {[%emt 0:03:32]} 15. Re1 {[%emt 0:01:53]} Nd7 {[%emt 0:05:31]} 16. h3 {[%emt 0:04:37]} Ngf6 {[%emt 0:02:23]} 17. Ba4 {[%emt 0:10:28]} Re7 {[%emt 0:14:54]} 18. Bc6 {[%emt 0:02:53]} Rd8 {[%emt 0:01:37]} 19. Bxd7 {[%emt 0:08:31]} Rdxd7 {[%emt 0:02:07]} 20. Kh2 {[%emt 0:01:31]} Rxe4 {[%emt 0:04:22]} 21. Rxe4 {[%emt 0:01:55]} Nxe4 {[%emt 0:00:02]} 22. Be3 {[%emt 0:02:35]} Qxb2 {[%emt 0:05:51]} 23. Rb1 {[%emt 0:01:03]} Qxa3 {[%emt 0:05:35]} 24. Rb8+ {[%emt 0:00:22]} Bf8 {[%emt 0:00:00]} 25. Bc1 {[%emt 0:00:47]} Qa5 {[%emt 0:05:26] [#]} ({Black should try} 25... Qc5 $1 $14) 26. f5 {[%emt 0:01:42]} ({White has to play} 26. Nc6 $1 $16 {[%cal Rc6a5]} Qa1 {[#]} 27. f5 $1 {[%mdl 512]}) 26... Rc7 $1 {[%emt 0:02:21]} 27. Nc6 {[%emt 0:00:25]} Qc5 {[%emt 0:02:45]} 28. Ng5 {[%emt 0:02:37]} Nf6 {[%emt 0:04:36]} 29. fxg6 {[%emt 0:00:38]} hxg6 {[%emt 0:00:50]} 30. Qf3 {[%emt 0:00:46]} Qxd5 {[%emt 0:02:44]} 31. Qxf6 {[%emt 0:00:22]} Rxc6 {[%emt 0:00:21]} 32. Bb2 {[%emt 0:00:10]} c3 {[%emt 0:00:10]} 33. Nh7 {[%emt 0:00:38]} Kxh7 {[%emt 0:01:48]} 34. Rxf8 {[%emt 0:00:37]} Qe5+ {[%emt 0:00:04]} 35. Qxe5 {[%emt 0:00:12]} dxe5 {[%emt 0:00:01]} 36. Bc1 {[%emt 0:00:59]} Kg7 {[%emt 0:01:30]} 37. Re8 {[%emt 0:00:14]} Kf6 {[%emt 0:00:55]} 38. Ra8 {[%emt 0:00:22]} Rc7 {[%emt 0:00:06]} 39. Kg3 {[%emt 0:00:12]} c2 {[%emt 0:00:33]} 40. Rd8 {[%emt 0:00:36]} Ke6 {[%emt 0:01:01]} 41. Kf2 {[%emt 0:00:23]} Bc4 {[%emt 0:01:52]} 42. g3 {[%emt 0:00:50]} Bd5 {[%emt 0:00:17]} 43. Re8+ {[%emt 0:00:25]} Kf6 {[%emt 0:00:42]} 44. h4 {[%emt 0:00:32]} a5 {[%emt 0:00:38]} 45. g4 {[%emt 0:00:11]} Rc4 {[%emt 0:00:34]} 46. Bg5+ {[%emt 0:00:10]} Kg7 {[%emt 0:00:17]} 47. Rxe5 {[%emt 0:01:06] [#]} f6 {[%emt 0:00:27] Double Attack} 48. Rxd5 {[%emt 0:00:12]} fxg5 {[%emt 0:00:04]} 0-1

[Event "Moscow Youth U19 2019"]
[Site "Moscow"]
[Date "2019.11.26"]
[Round "9.10"]
[White "Petrusevich, Ivan"]
[Black "Kozhukhov, Alexandr"]
[Result "0-1"]
[ECO "A13"]
[WhiteElo "1561"]
[BlackElo "1627"]
[Annotator "NA RC"]
[PlyCount "96"]
[EventDate "2019.11.18"]
[EventType "swiss"]
[EventCountry "RUS"]
[SourceTitle "playchess.com"]
[Source "ChessBase"]
[SourceQuality "1"]
[TimeControl "5400+30"]

1. c4 {[%emt 0:00:00]} Nf6 {[%emt 0:02:30]} 2. Nc3 {[%emt 0:00:00]} e6 {[%emt 0:00:10]} 3. Nf3 {[%emt 0:00:00]} d5 {[%emt 0:00:23]} 4. e3 {[%emt 0:00:20]} c5 {[%emt 0:00:47]} 5. d4 {[%emt 0:02:13]} Nc6 {[%emt 0:01:10]} 6. Be2 {[%emt 0:02:41]} Be7 {[%emt 0:04:25]} 7. O-O {[%emt 0:00:09]} O-O {[%emt 0:00:11]} 8. b3 {[%emt 0:02:05]} b6 {[%emt 0:04:30]} 9. Bb2 {[%emt 0:00:09]} dxc4 {[%emt 0:02:34]} 10. Bxc4 {[%emt 0:13:54]} cxd4 {[%emt 0:04:21]} 11. Nxd4 {[%emt 0:01:41]} Nxd4 {[%emt 0:00:06]} 12. exd4 {[%emt 0:00:05]} Bb7 {[%emt 0:00:20]} 13. Qe2 {[%emt 0:07:20]} Nd5 {[%emt 0:04:39]} 14. Nxd5 {[%emt 0:08:59]} Bxd5 {[%emt 0:00:46]} 15. Bd3 {[%emt 0:00:56]} Bf6 {[%emt 0:01:43]} 16. Rad1 {[%emt 0:57:28]} Qd6 {[%emt 0:01:51]} 17. Kh1 {[%emt 0:00:00]} Rfd8 {[%emt 0:03:04]} 18. Be4 {[%emt 0:00:00]} Bxe4 {[%emt 0:00:54]} 19. Qxe4 {[%emt 0:00:00]} Qd5 {[%emt 0:00:09]} 20. f3 {[%emt 0:00:00]} g6 {[%emt 0:00:26]} 21. Rd3 {[%emt 0:00:00]} Rd7 {[%emt 0:05:59]} 22. Rc1 {[%emt 0:00:00]} Rad8 {[%emt 0:01:05]} 23. Rc4 {[%emt 0:00:00]} b5 {[%emt 0:00:23]} 24. Qxd5 {[%emt 0:00:00]} Rxd5 {[%emt 0:00:37]} 25. Rc2 {[%emt 0:00:00]} e5 {[%emt 0:05:39]} 26. Kg1 {[%emt 0:00:00]} exd4 {[%emt 0:01:06]} 27. Ba3 {[%emt 0:00:00]} Bg7 {[%emt 0:06:52]} 28. Kf1 {[%emt 0:00:00]} Bf8 {[%emt 0:02:41]} 29. Bxf8 {[%emt 0:01:30]} Kxf8 {[%emt 0:00:05]} 30. Re2 {[%emt 0:00:58]} b4 {[%emt 0:03:17]} 31. Ke1 {[%emt 0:01:58]} f5 {[%emt 0:04:03]} 32. f4 {[%emt 0:00:49]} Kf7 {[%emt 0:01:53]} 33. Re5 {[%emt 0:00:26]} Rxe5+ {[%emt 0:00:12]} 34. fxe5 {[%emt 0:00:01]} Ke6 {[%emt 0:00:11]} 35. Rd2 {[%emt 0:00:56]} Kxe5 {[%emt 0:00:12]} 36. Re2+ {[%emt 0:00:13]} Kf6 {[%emt 0:00:11]} 37. Rc2 {[%emt 0:00:08]} Rd6 {[%emt 0:04:52]} 38. Rc4 {[%emt 0:00:37]} a5 {[%emt 0:00:17]} 39. Rc5 {[%emt 0:00:39]} Re6+ {[%emt 0:00:05]} 40. Kd2 {[%emt 0:02:31]} Re5 {[%emt 0:00:06]} 41. Rc4 {[%emt 0:01:04]} Rd5 {[%emt 0:00:14]} 42. Kd3 {[%emt 0:00:16]} Ke5 {[%emt 0:00:09]} 43. Rc7 {[%emt 0:00:51]} h5 {[%emt 0:00:08]} 44. Rc6 {[%emt 0:00:10]} g5 {[%emt 0:00:36]} 45. Rg6 {[%emt 0:00:52]} Kf4 {[%emt 0:00:12]} 46. g3+ {[%emt 0:00:24]} Kg4 {[%emt 0:00:05]} 47. h3+ {[%emt 0:01:07]} Kxg3 {[%emt 0:00:30]} 48. Rxg5+ {[%emt 0:00:30]} Kh4 {[%emt 0:00:30]} 0-1